bitfinex-derivatives/quotes_BTCF0:USTF0_20250405
["timestamp","ask_amount","ask_price","bid_price","bid_amount"]
[1743821410153,0.1494294,84056.0,84055.0,0.11893441]
[1743821412656,0.1494294,84056.0,84055.0,0.08643441]
[1743821413955,0.1494294,84056.0,84055.0,0.03591441]
[1743821414162,0.0833104,84055.0,84052.0,8e-05]
[1743821414660,0.1483304,84055.0,84052.0,8e-05]
[1743821414862,0.1483304,84055.0,84053.0,0.0308]
[1743821415861,0.1483304,84055.0,84054.0,0.61592554]
[1743821418051,0.1166304,84055.0,84054.0,0.64271511]
[1743821418257,0.0846304,84055.0,84054.0,0.67291511]
[1743821418455,0.0833104,84055.0,84054.0,0.67291511]
[1743821426765,0.0833104,84055.0,84054.0,1.03371511]
[1743821432571,0.0833104,84055.0,84054.0,0.67291511]
[1743821432770,0.0833104,84055.0,84054.0,1.03371511]
[1743821439171,0.07307838,84065.0,84064.0,0.0832993]
[1743821439473,0.07307838,84065.0,84064.0,0.4946193]
[1743821439673,0.07439838,84065.0,84064.0,0.4946193]
[1743821440664,0.10489838,84065.0,84064.0,0.4946193]
[1743821440866,0.10489838,84065.0,84064.0,0.5585193]
[1743821441475,0.10489838,84065.0,84064.0,0.5260193]
[1743821441778,0.13679838,84065.0,84064.0,0.5260193]
[1743821442364,0.16849838,84065.0,84064.0,0.5260193]
[1743821443472,0.16849838,84065.0,84064.0,0.41132]
[1743821449581,0.16849838,84065.0,84064.0,0.05052]
[1743821453081,0.0833025,84063.0,84062.0,8e-05]
[1743821453280,0.0833104,84055.0,84054.0,0.64271511]
[1743821453474,0.4441104,84055.0,84054.0,0.64271511]
[1743821453876,0.44551041,84055.0,84054.0,0.64271511]
[1743821454071,0.50831041,84055.0,84054.0,0.64271511]
[1743821465981,0.50831041,84055.0,84054.0,0.03563511]
[1743821466180,0.0833154,84050.0,84049.0,0.05052]
[1743821466786,0.0833154,84050.0,84049.0,0.09351758]
[1743821467087,0.1491154,84050.0,84049.0,0.09351758]
[1743821468280,0.15051541,84050.0,84049.0,0.09351758]
[1743821469783,0.15051541,84050.0,84049.0,0.12501758]
[1743821471090,0.08471541,84050.0,84049.0,0.12501758]
[1743821471291,0.08471541,84050.0,84049.0,0.15681758]
[1743821471492,0.0833154,84050.0,84049.0,0.15681758]
[1743821471991,0.0416563,84053.0,84049.0,0.15681758]
[1743821471992,0.1249643,84056.0,84049.0,0.15681758]
[1743821472186,0.0833094,84056.0,84055.0,0.3608]
[1743821472490,0.0833094,84056.0,84055.0,0.44411]
[1743821473084,0.0416524,84061.0,84060.0,0.0833049]
[1743821474293,0.0833064,84061.0,84060.0,0.0833045]
[1743821475395,0.0833028,84063.0,84062.0,0.0833028]
[1743821475693,0.0833028,84063.0,84062.0,0.1338228]
[1743821475884,0.0833008,84065.0,84064.0,0.0833005]
[1743821476085,0.0846208,84065.0,84064.0,0.4441005]
[1743821476592,0.00132,84065.0,84064.0,0.4441005]
[1743821476987,0.083299,84067.0,84066.0,0.0832995]
[1743821477188,0.0833005,84065.0,84064.0,0.3608]
[1743821478191,0.0833005,84065.0,84064.0,0.4441015]
[1743821478398,0.0846205,84065.0,84064.0,0.4441015]
[1743821481402,0.0833005,84065.0,84064.0,0.4441015]
[1743821481903,0.041649,84068.0,84067.0,0.0832985]
[1743821484100,0.041649,84068.0,84067.0,0.1144985]
[1743821485195,0.041649,84068.0,84067.0,0.1471985]
[1743821485702,0.0416478,84070.0,84069.0,0.0832965]
[1743821485891,0.0429678,84070.0,84069.0,0.0832965]
[1743821486091,0.0306,84071.0,84069.0,0.0832965]
[1743821486092,0.00017838,84073.0,84072.0,0.0832936]
[1743821486401,0.08347098,84073.0,84072.0,0.4440936]
[1743821486802,0.08347098,84073.0,84072.0,0.5065936]
[1743821487993,0.11627098,84073.0,84072.0,0.3911]
[1743821488199,0.0832995,84066.0,84064.0,0.00017838]
[1743821488398,0.0832995,84066.0,84065.0,0.41136]
[1743821488902,0.08425951,84066.0,84065.0,0.41136]
[1743821489101,0.14885951,84066.0,84065.0,0.41136]
[1743821490000,0.14885951,84066.0,84065.0,0.41204]
[1743821495993,0.14885951,84066.0,84065.0,0.41196]
[1743821496495,0.14885951,84066.0,84065.0,0.36148]
[1743821497401,0.14885951,84066.0,84065.0,0.00068]
[1743821504316,0.14885951,84066.0,84065.0,1e-07]
[1743821504517,0.0833005,84065.0,84064.0,8e-08]
[1743821504819,0.08442051,84065.0,84064.0,8e-08]
[1743821505118,0.14912051,84065.0,84064.0,8e-08]
[1743821509627,0.0833084,84057.0,84056.0,8e-08]
[1743821509822,0.0833154,84050.0,84049.0,0.04299758]
[1743821510126,0.0833183,84047.0,84046.0,0.05048]
[1743821510427,0.0833183,84047.0,84046.0,0.05933109]
[1743821510818,0.08443831,84047.0,84046.0,0.05933109]
[1743821513826,0.08443831,84047.0,84046.0,0.08866833]
[1743821517326,0.08443831,84047.0,84046.0,0.12036833]
[1743821520229,0.08443831,84047.0,84046.0,0.08866833]
[1743821521723,0.08443831,84047.0,84046.0,0.11866833]
[1743821534739,0.0833193,84046.0,84045.0,0.54749713]
[1743821535047,0.0833193,84046.0,84041.0,8e-05]
[1743821535048,0.0833263,84039.0,84038.0,0.00017838]
[1743821535240,0.0844863,84039.0,84038.0,8e-08]
[1743821535842,0.1470863,84039.0,84038.0,8e-08]
[1743821537853,0.0833332,84032.0,84031.0,0.03098]
[1743821538348,0.0833332,84032.0,84031.0,0.03981233]
[1743821539036,0.1464332,84032.0,84031.0,0.03981233]
[1743821540156,0.1475932,84032.0,84031.0,0.04097233]
[1743821542348,0.1475932,84032.0,84031.0,0.03941746]
[1743821542550,0.0833392,84026.0,84025.0,6e-08]
[1743821542861,0.08489921,84026.0,84025.0,0.02543546]
[1743821543052,0.08489921,84026.0,84025.0,0.02547546]
[1743821543251,0.08489921,84026.0,84025.0,0.02483546]
[1743821543450,0.14549921,84026.0,84025.0,0.02483546]
[1743821543651,0.14549921,84026.0,84018.0,0.02946699]
[1743821543652,0.0416724,84021.0,84018.0,0.02946699]
[1743821543852,0.4528,84020.0,84018.0,0.00152]
[1743821544048,0.1250195,84019.0,84018.0,0.00152]
[1743821544250,0.12657951,84019.0,84018.0,0.00152]
[1743821544554,0.19087951,84019.0,84018.0,0.00152]
[1743821545159,0.19087951,84019.0,84018.0,0.01041547]
[1743821546959,0.19087951,84019.0,84018.0,0.03994961]
[1743821550150,0.19087951,84019.0,84018.0,0.01041547]
[1743821550553,0.19087951,84019.0,84018.0,7e-08]
[1743821550753,0.0416735,84018.0,84014.0,0.00916004]
[1743821550963,0.083357,84008.0,84007.0,8e-05]
[1743821551163,0.083363,84002.0,84001.0,0.0327]
[1743821551364,0.085363,84002.0,84001.0,0.0327]
[1743821551564,0.083364,84001.0,84000.0,0.1]
[1743821551766,0.14958401,84001.0,84000.0,0.1]
[1743821552259,0.14958401,84001.0,84000.0,0.13785771]
[1743821568070,0.11688401,84001.0,84000.0,0.49865771]
[1743821568371,0.0833524,84013.0,84012.0,0.0833521]
[1743821568565,0.0847124,84013.0,84012.0,0.0833521]
[1743821568770,0.0833524,84013.0,84012.0,0.0833521]
[1743821568968,0.1250295,84013.0,84012.0,0.1750521]
[1743821569271,0.00136,84013.0,84012.0,0.1750521]
[1743821569475,0.0475911,84016.0,84015.0,0.0833501]
[1743821570067,0.0833451,84020.0,84019.0,0.0833457]
[1743821570273,0.0833451,84020.0,84019.0,0.3608]
[1743821570764,0.08474511,84020.0,84019.0,0.3608]
[1743821571367,0.0833471,84018.0,84017.0,0.0591]
[1743821571969,0.1150451,84020.0,84012.0,0.03268]
[1743821571970,0.0833521,84013.0,84012.0,0.03268]
[1743821572471,0.0847121,84013.0,84012.0,0.03268]
[1743821572872,0.1481121,84013.0,84012.0,0.0326]
[1743821580793,0.083355,84010.0,84009.0,0.0311]
[1743821582096,0.084715,84010.0,84009.0,0.0311]
[1743821582296,0.084715,84010.0,84009.0,0.141156]
[1743821583399,0.00136,84010.0,84009.0,0.141156]
[1743821583599,0.0833545,84011.0,84010.0,0.083355]
[1743821583802,0.0847145,84011.0,84010.0,0.444155]
[1743821584102,0.0847145,84011.0,84010.0,0.503155]
[1743821585109,0.0327,84021.0,84010.0,0.503155]
[1743821585110,0.1250258,84017.0,84016.0,0.0833481]
[1743821585294,0.1250258,84017.0,84016.0,0.0906]
[1743821585494,0.1565258,84017.0,84016.0,0.0906]
[1743821586904,0.1565258,84017.0,84016.0,0.1739491]
[1743821587493,0.1565258,84017.0,84016.0,0.0906]
[1743821587691,0.1574458,84017.0,84016.0,0.0906]
[1743821591109,0.1574458,84017.0,84016.0,0.0912]
[1743821595309,0.1895458,84017.0,84016.0,0.0912]
[1743821595916,0.1895458,84017.0,84016.0,0.1745491]
[1743821596111,0.1895458,84017.0,84016.0,0.0912]
[1743821596313,0.1895458,84017.0,84016.0,0.05112]
[1743821596512,0.2211458,84017.0,84016.0,0.05112]
[1743821597409,0.0833521,84013.0,84012.0,0.05052]
[1743821597814,0.1467521,84013.0,84012.0,0.05052]
[1743821598807,0.1467521,84013.0,84012.0,0.41132]
[1743821599718,0.1477521,84013.0,84012.0,0.41132]
[1743821600218,0.1477521,84013.0,84012.0,0.494673]
[1743821600513,0.1154521,84013.0,84012.0,0.494673]
[1743821600709,0.1144521,84013.0,84012.0,0.582073]
[1743821601114,0.1153721,84013.0,84012.0,0.555373]
[1743821601718,0.1153721,84013.0,84012.0,0.41132]
[1743821602618,0.1153721,84013.0,84012.0,0.494673]
[1743821603920,0.1153721,84013.0,84012.0,0.41132]
[1743821605323,0.1153721,84013.0,84012.0,0.41192]
[1743821606926,0.1153721,84013.0,84012.0,0.495273]
[1743821609128,0.1153721,84013.0,84012.0,0.05112]
[1743821609331,0.1153721,84013.0,84012.0,0.41192]
[1743821609724,0.1153721,84013.0,84012.0,0.05112]
[1743821610029,0.1153721,84013.0,84012.0,0.41192]
[1743821611632,0.1153721,84013.0,84012.0,0.3614]
[1743821611930,0.1153721,84013.0,84012.0,0.41192]
[1743821612120,0.1153721,84013.0,84012.0,0.05112]
[1743821612321,0.4761721,84013.0,84012.0,0.05052]
[1743821612522,0.1153721,84013.0,84012.0,0.03562687]
[1743821612829,0.4761721,84013.0,84012.0,0.03562687]
[1743821613216,0.083356,84009.0,84008.0,8e-05]
[1743821613429,0.083358,84007.0,84006.0,0.05052]
[1743821614231,0.179858,84007.0,84006.0,0.05052]
[1743821615032,0.180778,84007.0,84006.0,0.05112]
[1743821625644,0.180778,84007.0,84006.0,0.05052]
[1743821630046,0.180778,84007.0,84006.0,0.05112]
[1743821632439,0.180778,84007.0,84006.0,0.0006]
[1743821632639,0.08336,84005.0,84004.0,0.00017849]
[1743821632839,0.08428,84005.0,84004.0,0.00109849]
[1743821633036,0.083364,84001.0,84000.0,0.0961556]
[1743821633340,0.084644,84001.0,84000.0,0.0584119]
[1743821639940,0.116344,84001.0,84000.0,0.0584119]
[1743821642040,0.116344,84001.0,84000.0,0.0577719]
[1743821644648,0.146744,84001.0,84000.0,0.0577719]
[1743821649150,0.146744,84001.0,84000.0,0.0270617]
[1743821649345,0.083365,84000.0,83999.0,0.05052]
[1743821649544,0.08456501,84000.0,83999.0,0.05052]
[1743821649746,0.14606501,84000.0,83999.0,0.05052]
[1743821652136,0.14606501,84000.0,83999.0,0.0821086]
[1743821653254,0.14606501,84000.0,83999.0,0.09082991]
[1743821653942,0.11466501,84000.0,83999.0,0.09082991]
[1743821654160,0.11466501,84000.0,83999.0,0.14852991]
[1743821660556,0.11466501,84000.0,83999.0,0.12182991]
[1743821662052,0.11466501,84000.0,83999.0,0.04030991]
[1743821662257,0.11466501,84000.0,83999.0,0.05052]
[1743821663156,0.11466501,84000.0,83999.0,0.05936976]
[1743821663758,0.14786501,84000.0,83999.0,0.05936976]
[1743821664555,0.14786501,84000.0,83999.0,0.09123696]
[1743821670553,0.14786501,84000.0,83999.0,0.15103696]
[1743821671256,0.14786501,84000.0,83999.0,0.51183696]
[1743821671866,0.14786501,84000.0,83999.0,0.15103696]
[1743821673063,0.11466501,84000.0,83999.0,0.15103696]
[1743821681259,0.11466501,84000.0,83999.0,0.51183696]
[1743821682070,0.03130001,84000.0,83999.0,0.59520286]
[1743821682268,0.0301,84000.0,83999.0,0.59520286]
[1743821682459,0.113465,84000.0,83999.0,0.59520286]
[1743821685262,0.11466501,84000.0,83999.0,0.59580286]
[1743821689660,0.11466501,84000.0,83999.0,0.51243696]
[1743821690366,0.11466501,84000.0,83999.0,0.45263696]
[1743821698475,0.0518613,84004.0,84003.0,0.0416809]
[1743821698679,0.0416692,84027.0,83999.0,0.45263696]
[1743821698680,0.0416778,84010.0,84007.0,0.083357]
[1743821698977,0.0416778,84010.0,84008.0,0.3875]
[1743821699781,0.08353449,84009.0,84008.0,0.3608]
[1743821699978,0.08437449,84009.0,84008.0,0.3608]
[1743821700179,0.08437449,84009.0,84008.0,0.3614]
[1743821701678,0.14757449,84009.0,84008.0,0.3614]
[1743821711292,0.14757449,84009.0,84008.0,0.34650719]
[1743821711888,0.083365,84000.0,83999.0,0.11219446]
[1743821712095,0.083365,84000.0,83999.0,0.04079696]
[1743821712296,0.083365,84000.0,83999.0,0.09131696]
[1743821712792,0.148565,84000.0,83999.0,0.09131696]
[1743821713092,0.148565,84000.0,83999.0,0.04071696]
[1743821713395,0.0833659,83999.0,83998.0,0.3608]
[1743821713578,0.0833659,83999.0,83998.0,0.36088]
[1743821713784,0.1485659,83999.0,83998.0,0.4005713]
[1743821714993,0.1496459,83999.0,83998.0,0.4005713]
[1743821715294,0.1496459,83999.0,83998.0,0.4016513]
[1743821716194,0.1496459,83999.0,83998.0,0.41039453]
[1743821720193,0.1496459,83999.0,83998.0,0.44099453]
[1743821721301,0.1170459,83999.0,83998.0,0.44099453]
[1743821721494,0.1170459,83999.0,83998.0,0.47399453]
[1743821721900,0.0844459,83999.0,83998.0,0.47399453]
[1743821722289,0.0833643,84001.0,83998.0,0.47399453]
[1743821722591,0.0833631,84004.0,84003.0,0.0833614]
[1743821722789,0.041679,84007.0,84004.0,0.0833604]
[1743821722996,0.0833609,84005.0,84004.0,0.0624]
[1743821723501,0.0833573,84008.0,84005.0,0.04168]
[1743821723688,0.083356,84011.0,84010.0,0.0833549]
[1743821723895,0.083356,84011.0,84010.0,0.1338749]
[1743821724402,0.083356,84011.0,84010.0,0.1943749]
[1743821724599,0.1250332,84011.0,84010.0,0.1943749]
[1743821725100,0.1250332,84011.0,84010.0,0.1949749]
[1743821727507,0.0416772,84011.0,84010.0,0.11162]
[1743821727689,0.0416772,84011.0,84010.0,0.194975]
[1743821729101,0.0416772,84011.0,84010.0,0.555775]
[1743821729294,0.0833526,84013.0,84012.0,0.083353]
[1743821729493,0.0833526,84013.0,84012.0,0.083953]
[1743821730909,0.0833526,84013.0,84012.0,0.0006]
[1743821731216,0.1787726,84013.0,84012.0,0.05108]
[1743821732306,0.1787726,84013.0,84012.0,0.134433]
[1743821733092,0.00072,84013.0,84012.0,0.134433]
[1743821733291,0.00017849,84015.0,84014.0,0.0833511]
[1743821733497,0.00017849,84015.0,84014.0,0.0839511]
[1743821734904,0.08352859,84015.0,84014.0,0.0839511]
[1743821736198,0.00017849,84015.0,84014.0,0.0839511]
[1743821739609,0.03247849,84015.0,84014.0,0.0839511]
[1743821741803,0.00017849,84015.0,84014.0,0.0839511]
[1743821746607,0.0323,84021.0,84020.0,0.0833451]
[1743821746807,0.03302,84021.0,84020.0,0.4447451]
[1743821747210,0.06472,84021.0,84020.0,0.4447451]
[1743821747518,0.06472,84021.0,84020.0,0.5086451]
[1743821748514,0.1480641,84021.0,84020.0,0.5086451]
[1743821748917,0.1480641,84021.0,84020.0,0.3614]
[1743821749215,0.1480641,84021.0,84020.0,0.41188]
[1743821750314,0.2980641,84021.0,84020.0,0.0006]
[1743821750517,0.0833491,84016.0,84012.0,8e-05]
[1743821750814,0.083358,84007.0,84006.0,0.05048]
[1743821751121,0.084078,84007.0,84006.0,0.05108]
[1743821766922,0.084078,84007.0,84006.0,0.05048]
[1743821767122,0.083364,84001.0,84000.0,0.05048]
[1743821767325,0.084084,84001.0,84000.0,0.05108]
[1743821767531,0.0833659,83999.0,83998.0,0.04869302]
[1743821767825,0.0840859,83999.0,83998.0,0.04869302]
[1743821768326,0.0833828,83982.0,83981.0,0.3608]
[1743821768631,0.0833828,83982.0,83981.0,0.41188]
[1743821770627,0.0833828,83982.0,83981.0,0.44536112]
[1743821771026,0.0833828,83982.0,83981.0,0.4544585]
[1743821780031,0.1146828,83982.0,83981.0,0.4544585]
[1743821780230,0.1154828,83982.0,83981.0,0.4544585]
[1743821781033,0.1146828,83982.0,83981.0,0.4544585]
[1743821781919,0.1154028,83982.0,83981.0,0.4544585]
[1743821782121,0.1146828,83982.0,83981.0,0.4544585]
[1743821783130,0.1146828,83982.0,83981.0,0.4039785]
[1743821783437,0.1146828,83982.0,83981.0,0.0431785]
[1743821783438,0.4762828,83982.0,83981.0,0.0431785]
[1743821783737,0.4762828,83982.0,83981.0,0.0425785]
[1743821783934,0.0833838,83981.0,83980.0,8e-05]
[1743821784134,0.1158038,83981.0,83980.0,8e-05]
[1743821784334,0.1480038,83981.0,83980.0,8e-05]
[1743821785927,0.1480038,83981.0,83980.0,0.03389037]
[1743821788937,0.1480038,83981.0,83980.0,0.0429799]
[1743821796947,0.1480038,83981.0,83980.0,0.4037799]
[1743821797144,0.1480038,83981.0,83980.0,0.4043799]
[1743821799145,0.1480038,83981.0,83980.0,0.0435799]
[1743821799445,0.1480038,83981.0,83980.0,0.4043799]
[1743821807250,0.1480038,83981.0,83980.0,0.0435799]
[1743821820553,0.1158038,83981.0,83980.0,0.0435799]
[1743821821559,0.00072,83981.0,83980.0,0.1269647]
[1743821821757,0.0833781,83987.0,83986.0,0.0833788]
[1743821821960,0.0841381,83987.0,83986.0,0.41192]
[1743821822157,0.0841781,83987.0,83986.0,0.05112]
[1743821823855,0.0841781,83987.0,83986.0,0.05052]
[1743821824761,0.1155781,83987.0,83986.0,0.05052]
[1743821825259,0.1155781,83987.0,83986.0,0.05116]
[1743821826358,0.1155781,83987.0,83986.0,0.05052]
[1743821826754,0.1155781,83987.0,83986.0,0.08292]
[1743821829463,0.1155781,83987.0,83986.0,0.0836]
[1743821832259,0.1155781,83987.0,83986.0,0.08292]
[1743821832458,0.1155781,83987.0,83986.0,0.08352]
[1743821836968,0.0841781,83987.0,83986.0,0.08352]
[1743821841763,0.0841781,83987.0,83986.0,0.1668988]
[1743821842077,0.0008,83987.0,83986.0,0.1668988]
[1743821842276,0.0833777,83988.0,83987.0,0.1250645]
[1743821842478,0.0833777,83988.0,83987.0,0.1896045]
[1743821842669,0.04186601,83990.0,83989.0,0.0833759]
[1743821842870,0.04186601,83990.0,83989.0,0.0839759]
[1743821844175,0.04186601,83990.0,83989.0,0.0006]
[1743821844578,0.04258601,83990.0,83989.0,0.0006]
[1743821844880,0.04258601,83990.0,83989.0,0.0963]
[1743821846890,0.04186601,83990.0,83989.0,0.0963]
[1743821848291,0.04186601,83990.0,83989.0,0.1796759]
[1743821848686,0.04186601,83990.0,83989.0,0.0963]
[1743821848893,0.04258601,83990.0,83989.0,0.0963]
[1743821851496,0.04258601,83990.0,83989.0,0.0327]
[1743821851684,0.04258601,83990.0,83989.0,0.08322]
[1743821852195,0.10658601,83990.0,83989.0,0.08322]
[1743821852784,0.10658601,83990.0,83989.0,0.14652]
[1743821852986,0.04186601,83990.0,83989.0,0.14652]
[1743821856789,0.04186601,83990.0,83989.0,0.11472]
[1743821857494,0.04186601,83990.0,83989.0,0.08322]
[1743821858091,0.04186601,83990.0,83989.0,0.11562]
[1743821860896,0.04266601,83990.0,83989.0,0.08322]
[1743821864692,0.04266601,83990.0,83989.0,0.08318]
[1743821865103,0.04266601,83990.0,83989.0,0.05108]
[1743821865300,0.0833838,83981.0,83980.0,0.0428999]
[1743821865602,0.0833838,83981.0,83980.0,0.0512]
[1743821865603,0.0841038,83981.0,83980.0,0.0512]
[1743821866305,0.1461038,83981.0,83980.0,0.0512]
[1743821867704,0.1461038,83981.0,83980.0,0.06004736]
[1743821868204,0.1461038,83981.0,83980.0,0.09584705]
[1743821868402,0.03092,83981.0,83980.0,0.21153185]
[1743821868608,0.0833835,83982.0,83981.0,0.0833838]
[1743821868901,0.0841035,83982.0,83981.0,0.1473838]
[1743821873603,0.0833835,83982.0,83981.0,0.1473838]
[1743821875107,0.0833809,83984.0,83983.0,0.0833798]
[1743821875310,0.0841009,83984.0,83983.0,0.4447798]
[1743821878609,0.00072,83984.0,83983.0,0.4447798]
[1743821878809,0.0416884,83988.0,83983.0,0.4447798]
[1743821878810,0.0833801,83985.0,83984.0,0.125068]
[1743821879014,0.0833801,83985.0,83984.0,0.219768]
[1743821879310,0.0841001,83985.0,83984.0,0.219768]
[1743821882012,0.00072,83985.0,83984.0,0.219768]
[1743821882311,0.00017861,83990.0,83989.0,0.0833759]
[1743821882511,0.00017861,83990.0,83989.0,0.0839759]
[1743821882712,0.00089861,83990.0,83989.0,0.0839759]
[1743821882910,0.00089861,83990.0,83989.0,0.1460759]
[1743821883707,0.0416756,84014.0,83989.0,0.0627]
[1743821883910,0.0302,84003.0,84002.0,0.5156828]
[1743821884114,0.0637,84008.0,84007.0,0.083358]
[1743821884318,0.0302,84011.0,84010.0,0.083355]
[1743821884513,0.0302,84011.0,84010.0,0.444875]
[1743821884706,0.03092,84011.0,84010.0,0.444875]
[1743821885015,0.114274,84011.0,84010.0,0.42502]
[1743821888918,0.084074,84011.0,84010.0,0.42502]
[1743821889109,0.114274,84011.0,84010.0,0.42502]
[1743821894110,0.114274,84011.0,84010.0,0.508375]
[1743821894315,0.00072,84011.0,84010.0,0.508375]
[1743821894515,0.083354,84011.0,84010.0,0.5500524]
[1743821894916,0.0416755,84014.0,84013.0,0.0833521]
[1743821895121,0.0416755,84014.0,84013.0,0.0840721]
[1743821895317,0.0423555,84014.0,84013.0,0.0840721]
[1743821895915,0.0416755,84014.0,84013.0,0.1159721]
[1743821896926,0.0423555,84014.0,84013.0,0.1159721]
[1743821897120,0.0416755,84014.0,84013.0,0.03262]
[1743821897317,0.0423955,84014.0,84013.0,0.03262]
[1743821897518,0.0423955,84014.0,84013.0,0.00072]
[1743821897728,0.0743955,84014.0,84013.0,0.00072]
[1743821899533,0.0743955,84014.0,84013.0,0.0840721]
[1743821899726,0.03272,84014.0,84013.0,0.1502721]
[1743821899931,0.1153511,84014.0,84013.0,0.1502721]
[1743821900135,0.1160311,84014.0,84013.0,0.1502721]
[1743821903534,0.1160311,84014.0,84013.0,0.5110721]
[1743821904635,0.00017861,84019.0,84018.0,0.0833471]
[1743821904837,0.00017861,84019.0,84018.0,0.4955071]
[1743821905031,0.00017861,84019.0,84018.0,0.5576071]
[1743821905434,0.0544161,84030.0,84029.0,0.0833362]
[1743821905731,0.05529611,84030.0,84029.0,0.4450162]
[1743821906132,0.05529611,84030.0,84029.0,0.36168]
[1743821906825,0.08599611,84030.0,84029.0,0.39268]
[1743821907232,0.11679611,84030.0,84029.0,0.39268]
[1743821908636,0.11679611,84030.0,84029.0,0.40169195]
[1743821910339,0.11679611,84030.0,84029.0,0.43794089]
[1743821910838,0.11679611,84030.0,84029.0,0.52127709]
[1743821911039,0.08599611,84030.0,84029.0,0.52127709]
[1743821911937,0.08599611,84030.0,84029.0,0.43794089]
[1743821912639,0.11609611,84030.0,84029.0,0.43794089]
[1743821913836,0.11609611,84030.0,84029.0,0.40694089]
[1743821916443,0.11609611,84030.0,84029.0,0.04614089]
[1743821919441,0.11609611,84030.0,84029.0,0.04526089]
[1743821919648,0.11609611,84030.0,84029.0,0.05136]
[1743821920437,0.11609611,84030.0,84029.0,0.08376]
[1743821920838,0.11609611,84030.0,84029.0,0.09271214]
[1743821923450,0.11609611,84030.0,84029.0,0.12884917]
[1743821933157,0.11609611,84030.0,84029.0,0.15894917]
[1743821934651,0.11609611,84030.0,84029.0,0.12884917]
[1743821936560,0.11609611,84030.0,84029.0,0.15994917]
[1743821938463,0.11609611,84030.0,84029.0,0.09644917]
[1743821938657,0.11609611,84030.0,84029.0,0.04596917]
[1743821938962,0.11609611,84030.0,84029.0,0.09556917]
[1743821947562,0.08599611,84030.0,84029.0,0.09556917]
[1743821952483,0.08599611,84030.0,84029.0,0.09648917]
[1743821973193,0.11599611,84030.0,84029.0,0.09648917]
[1743821980199,0.08599611,84030.0,84029.0,0.09648917]
[1743821980507,0.11709611,84030.0,84029.0,0.09648917]
[1743822003329,0.08599611,84030.0,84029.0,0.09648917]
[1743822006820,0.11769611,84030.0,84029.0,0.09648917]
[1743822007218,0.0833481,84017.0,84016.0,8e-05]
[1743822007424,0.083357,84008.0,84007.0,0.0323]
[1743822008618,0.083357,84008.0,84007.0,0.06034404]
[1743822010131,0.08395701,84008.0,84007.0,0.06094404]
[1743822010732,0.08395701,84008.0,84007.0,0.09334404]
[1743822016833,0.08395701,84008.0,84007.0,0.17670204]
[1743822017137,0.0416755,84015.0,84014.0,0.0833511]
[1743822017334,0.0416755,84015.0,84014.0,0.0839911]
[1743822017838,0.0416755,84015.0,84014.0,0.06634]
[1743822019341,0.0416755,84015.0,84014.0,0.1496911]
[1743822022042,0.0416755,84015.0,84014.0,0.5104911]
[1743822023141,0.0416755,84015.0,84014.0,0.1496911]
[1743822023344,0.04227551,84015.0,84014.0,0.5104911]
[1743822023542,0.0416755,84015.0,84014.0,0.5104911]
[1743822026144,0.0416755,84015.0,84014.0,0.42714]
[1743822031349,0.0423555,84015.0,84014.0,0.42714]
[1743822033338,0.0423555,84015.0,84014.0,0.06634]
[1743822033540,0.0423555,84015.0,84014.0,0.42714]
[1743822037839,0.0748555,84015.0,84014.0,0.42714]
[1743822038652,0.1065555,84015.0,84014.0,0.42714]
[1743822040251,0.1065555,84015.0,84014.0,0.06634]
[1743822044145,0.1065555,84015.0,84014.0,0.03384]
[1743822044350,0.1065555,84015.0,84014.0,0.05108]
[1743822044662,0.1065555,84015.0,84014.0,1e-07]
[1743822044663,0.2565555,84015.0,84014.0,1e-07]
[1743822044958,0.083354,84011.0,84010.0,0.05044]
[1743822045260,0.444914,84011.0,84010.0,0.05112]
[1743822045957,0.509814,84011.0,84010.0,0.05112]
[1743822048449,0.509814,84011.0,84010.0,0.05044]
[1743822063266,0.509814,84011.0,84007.0,0.02788465]
[1743822063267,0.083357,84008.0,84007.0,0.02788465]
[1743822063457,0.084117,84008.0,84007.0,0.02788465]
[1743822064171,0.177517,84008.0,84007.0,0.02788465]
[1743822065169,0.083365,84000.0,83997.0,0.05044]
[1743822065366,0.084125,84000.0,83999.0,0.00874253]
[1743822065672,0.084125,84000.0,83999.0,0.00064]
[1743822065870,0.114425,84000.0,83999.0,0.00064]
[1743822067874,0.114425,84000.0,83999.0,0.00971764]
[1743822069366,0.114425,84000.0,83999.0,4e-08]
[1743822069575,0.114425,84000.0,83999.0,0.0006]
[1743822069973,0.0833669,83998.0,83997.0,0.06449261]
[1743822071675,0.0833669,83998.0,83997.0,0.0734041]
[1743822071878,0.08448691,83998.0,83997.0,0.0734041]
[1743822075975,0.08448691,83998.0,83997.0,0.1056041]
[1743822078974,0.08448691,83998.0,83997.0,0.549772]
[1743822079168,0.08448691,83998.0,83997.0,0.4664041]
[1743822085768,0.08448691,83998.0,83997.0,0.549772]
[1743822085969,0.08448691,83998.0,83997.0,0.4664041]
[1743822087580,0.08448691,83998.0,83997.0,0.549772]
[1743822091684,0.08448691,83998.0,83997.0,0.4664041]
[1743822096202,0.08448691,83998.0,83997.0,0.1056041]
[1743822096711,0.08448691,83998.0,83997.0,0.4664041]
[1743822100403,0.08448691,83998.0,83997.0,0.1056041]
[1743822100594,0.08448691,83998.0,83997.0,0.4664041]
[1743822104306,0.08448691,83998.0,83997.0,0.1056041]
[1743822104506,0.08448691,83998.0,83997.0,0.4664041]
[1743822105402,0.08448691,83998.0,83997.0,0.1056041]
[1743822105602,0.08448691,83998.0,83997.0,0.4664041]
[1743822107004,0.08448691,83998.0,83997.0,0.1056041]
[1743822107309,0.08448691,83998.0,83997.0,0.4664041]
[1743822109309,0.11508691,83998.0,83997.0,0.4664041]
[1743822109609,0.14828691,83998.0,83997.0,0.4664041]
[1743822110209,0.14828691,83998.0,83997.0,0.1056041]
[1743822110408,0.14828691,83998.0,83997.0,0.4036041]
[1743822110810,0.14828691,83998.0,83997.0,0.4665041]
[1743822111311,0.14828691,83998.0,83997.0,0.4358041]
[1743822112608,0.14828691,83998.0,83997.0,0.0750041]
[1743822112917,0.14828691,83998.0,83997.0,0.4358041]
[1743822113512,0.14828691,83998.0,83997.0,0.0750041]
[1743822113717,0.14828691,83998.0,83997.0,0.4358041]
[1743822114618,0.14828691,83998.0,83997.0,0.0750041]
[1743822114806,0.14828691,83998.0,83997.0,0.4358041]
[1743822115318,0.14828691,83998.0,83997.0,0.0750041]
[1743822115505,0.14828691,83998.0,83997.0,0.4358041]
[1743822115809,0.14828691,83998.0,83997.0,0.1056041]
[1743822116015,0.14828691,83998.0,83997.0,0.4664041]
[1743822116914,0.14828691,83998.0,83997.0,0.1056041]
[1743822117121,0.14828691,83998.0,83997.0,0.4664041]
[1743822117715,0.14828691,83998.0,83997.0,0.1056041]